bitfinex/quotes_BTCUSD_20251021
["timestamp","ask_amount","ask_price","bid_price","bid_amount"]
[1761089197160,0.34,109520.0,109500.0,0.0004]
[1761089197364,2.99700803,109510.0,109500.0,0.0004]
[1761089197560,3.02520974,109510.0,109500.0,0.0004]
[1761089197728,2.64676862,109510.0,109500.0,0.0004]
[1761089198087,3.00554493,109510.0,109500.0,0.0004]
[1761089199329,2.99700803,109510.0,109500.0,0.0004]
[1761089199602,3.08682704,109510.0,109500.0,0.0004]
[1761089202714,3.16918657,109510.0,109500.0,0.0004]
[1761089204360,3.18350606,109510.0,109500.0,0.0004]
[1761089204568,2.74237022,109510.0,109500.0,0.0004]
[1761089206450,0.65255121,109510.0,109500.0,0.0004]
[1761089206882,0.53695121,109510.0,109500.0,0.1830484]
[1761089207152,0.65259121,109510.0,109500.0,0.0004]
[1761089207334,0.63827172,109510.0,109500.0,0.0004]
[1761089208212,0.72641594,109510.0,109500.0,0.0004]
[1761089208581,0.63827172,109510.0,109500.0,0.0004]
[1761089211166,0.64680105,109510.0,109500.0,0.0004]
[1761089215851,3.10759384,109510.0,109500.0,0.0004]
[1761089216356,3.14377612,109510.0,109500.0,0.0004]
[1761089216485,3.23609224,109510.0,109500.0,0.0004]
[1761089216685,2.55883068,109500.0,109490.0,0.005]
[1761089216888,3.1015555,109500.0,109490.0,0.005]
[1761089218101,3.05239628,109500.0,109490.0,0.005]
[1761089219060,3.05339628,109500.0,109490.0,0.005]
[1761089219261,3.05439628,109500.0,109490.0,0.005]
[1761089219461,3.14421529,109500.0,109490.0,0.005]
[1761089220032,3.14321529,109500.0,109490.0,0.005]
[1761089220176,3.14421529,109500.0,109490.0,0.005]
[1761089220989,2.82367945,109500.0,109490.0,0.005]
[1761089221163,3.27413733,109500.0,109490.0,0.005]
[1761089221593,3.25981529,109500.0,109490.0,0.005]
[1761089223168,3.30897451,109500.0,109490.0,0.005]
[1761089223992,3.25981529,109500.0,109490.0,0.005]
[1761089225228,3.30897451,109500.0,109490.0,0.005]
[1761089226721,3.30899088,109500.0,109490.0,0.005]
[1761089226915,0.52268176,109480.0,109470.0,0.0004]
[1761089227126,0.61289122,109480.0,109470.0,0.0004]
[1761089227954,0.35967332,109480.0,109470.0,0.18309845]
[1761089228177,0.54250249,109480.0,109470.0,0.0004]
[1761089231104,0.54250249,109480.0,109470.0,0.18309845]
[1761089234789,0.54250112,109480.0,109470.0,0.18309845]
[1761089235235,0.52282917,109480.0,109470.0,0.18309845]
[1761089235449,0.60494405,109480.0,109470.0,0.18309845]
[1761089236175,0.60494405,109480.0,109440.0,0.0004]
[1761089236176,2.0,109460.0,109440.0,0.0004]
[1761089236408,3.11624996,109450.0,109440.0,0.0004]
[1761089236644,3.13592579,109450.0,109440.0,0.0004]
[1761089237114,3.13592579,109450.0,109440.0,1e-08]
[1761089237115,3.17051763,109450.0,109440.0,1e-08]
[1761089237302,3.14592578,109450.0,109440.0,1e-08]
[1761089237568,3.1951027,109450.0,109440.0,1e-08]
[1761089237796,3.28492171,109450.0,109440.0,1e-08]
[1761089238042,3.23574479,109450.0,109440.0,1e-08]
[1761089238300,0.52276523,109430.0,109420.0,0.0004]
[1761089238527,3.12434259,109430.0,109420.0,0.0004]
[1761089238739,3.2141616,109430.0,109420.0,0.0004]
[1761089238957,3.26853244,109430.0,109420.0,0.0004]
[1761089239164,2.96391778,109420.0,109410.0,0.0004]
[1761089239375,3.008135,109420.0,109410.0,0.0004]
[1761089239585,3.00828227,109420.0,109410.0,0.0004]
[1761089239809,3.09447056,109420.0,109410.0,0.0004]
[1761089240015,2.65333472,109420.0,109410.0,0.0004]
[1761089240430,3.06992917,109420.0,109410.0,0.0004]
[1761089240631,3.07092917,109420.0,109410.0,0.0004]
[1761089241039,3.07192917,109420.0,109410.0,0.0004]
[1761089241624,3.09873282,109420.0,109410.0,0.0004]
[1761089248019,3.14491509,109420.0,109410.0,0.0004]
[1761089248217,3.15924878,109420.0,109410.0,0.0004]
[1761089248418,3.17358341,109420.0,109410.0,0.0004]
[1761089248880,3.18379017,109420.0,109410.0,0.0004]
[1761089249238,3.15924878,109420.0,109410.0,0.0004]
[1761089249963,2.97950056,109420.0,109410.0,1e-08]
[1761089250196,2.81924878,109420.0,109410.0,1e-08]
[1761089250394,2.81914547,109420.0,109410.0,1e-08]
[1761089250954,2.88881423,109420.0,109410.0,1e-08]
[1761089251171,2.89881422,109420.0,109410.0,1e-08]
[1761089251978,0.18281535,109400.0,109390.0,0.0002]
[1761089252180,3.11297094,109400.0,109390.0,0.0002]
[1761089252590,2.54571511,109400.0,109390.0,0.0002]
[1761089252810,3.10297095,109400.0,109390.0,0.0002]
[1761089252945,2.98685095,109400.0,109390.0,0.0002]
[1761089253148,3.10297095,109400.0,109390.0,0.0002]
[1761089253366,2.98685095,109400.0,109390.0,0.0002]
[1761089253544,3.10297095,109400.0,109390.0,0.0002]
[1761089255393,2.98685095,109400.0,109390.0,0.0002]
[1761089255591,3.10301095,109400.0,109390.0,0.0002]
[1761089257040,0.18279864,109410.0,109390.0,0.18303206]
[1761089257041,0.42799864,109410.0,109390.0,0.18303206]
[1761089257174,0.29893535,109400.0,109390.0,0.18303206]
[1761089257548,0.63893535,109400.0,109390.0,0.00054726]
[1761089257698,0.63893535,109400.0,109390.0,0.18337932]
[1761089257870,0.72875436,109400.0,109390.0,0.18337932]
[1761089258293,0.72875436,109400.0,109390.0,0.00054726]
[1761089259398,1.1698902,109400.0,109390.0,0.00054726]
[1761089259621,3.1698902,109400.0,109390.0,0.00054726]
[1761089260870,3.0537702,109400.0,109390.0,0.00054726]
[1761089261092,2.63893535,109400.0,109390.0,0.00054726]
[1761089262151,2.65326976,109400.0,109390.0,0.00054726]
[1761089262356,2.63893535,109400.0,109390.0,0.00054726]
[1761089262560,3.08007119,109400.0,109390.0,0.00054726]
[1761089263203,3.09971741,109400.0,109390.0,0.00054726]
[1761089263421,3.18953642,109400.0,109390.0,0.00054726]
[1761089263629,0.74840058,109400.0,109390.0,0.00054726]
[1761089264782,1.10797899,109400.0,109390.0,0.00054726]
[1761089266338,1.13244464,109400.0,109390.0,0.00054726]
[1761089267204,1.1651989,109400.0,109390.0,0.00054726]
[1761089268088,0.94056369,109400.0,109390.0,0.00054726]
[1761089268296,1.12337904,109400.0,109390.0,0.00054726]
[1761089270287,3.12337904,109400.0,109390.0,0.00054726]
[1761089272688,3.1561333,109400.0,109390.0,0.00054726]
[1761089273238,3.12337904,109400.0,109390.0,0.00054726]
[1761089278130,3.1561333,109400.0,109390.0,0.00054726]
[1761089280723,3.54037745,109400.0,109390.0,0.00054726]
[1761089280967,3.18079904,109400.0,109390.0,0.00054726]
[1761089281173,3.15615965,109400.0,109390.0,0.00054726]
[1761089281836,3.13146765,109400.0,109390.0,0.00054726]
[1761089284456,3.15616739,109400.0,109390.0,0.00054726]
[1761089284587,3.13146765,109400.0,109390.0,0.00054726]
[1761089284784,3.27830562,109400.0,109390.0,0.00054726]
[1761089284985,3.53151381,109400.0,109390.0,0.00054726]
[1761089285372,3.5806452,109400.0,109390.0,0.00054726]
[1761089285795,3.54789094,109400.0,109390.0,0.00054726]
[1761089286221,3.58082043,109400.0,109390.0,0.00054726]
[1761089286436,3.58182043,109400.0,109390.0,0.00054726]
[1761089287082,3.58082043,109400.0,109390.0,0.00054726]
[1761089288209,3.54789094,109400.0,109390.0,0.00054726]
[1761089288422,4.3328521,109400.0,109390.0,1e-08]
[1761089288638,3.57422753,109400.0,109390.0,1e-08]
[1761089290582,3.45830753,109400.0,109390.0,1e-08]
[1761089290802,3.22970463,109400.0,109390.0,1e-08]
[1761089291250,3.19679204,109400.0,109390.0,1e-08]
[1761089291704,3.19579204,109400.0,109390.0,1e-08]
[1761089291933,0.01964622,109400.0,109390.0,1e-08]
[1761089292163,0.52967714,109420.0,109400.0,0.18281535]
[1761089292393,0.04668892,109420.0,109410.0,0.18279864]
[1761089292615,0.63989711,109420.0,109410.0,0.18279864]
[1761089292842,0.56947086,109420.0,109400.0,0.18281535]
[1761089293293,0.22947086,109420.0,109400.0,0.18281535]
[1761089293509,0.34,109410.0,109400.0,0.20109688]
[1761089295318,0.34,109410.0,109400.0,0.20209688]
[1761089295548,0.34,109410.0,109400.0,0.18381535]
[1761089295973,0.34,109410.0,109400.0,0.18481535]
[1761089298036,0.34,109410.0,109400.0,0.20309688]
[1761089299347,0.36695092,109420.0,109410.0,0.18279864]
[1761089299584,0.56944555,109420.0,109410.0,0.18279864]
[1761089300182,0.63935971,109420.0,109410.0,0.18279864]
[1761089301302,0.38666361,109420.0,109410.0,0.18279864]
[1761089301729,0.36695092,109420.0,109410.0,0.18279864]
[1761089302366,0.54973286,109420.0,109410.0,0.18279864]
[1761089302724,0.36695092,109420.0,109410.0,0.18279864]
[1761089303101,0.54973286,109420.0,109410.0,0.18279864]
[1761089303709,0.36695092,109420.0,109410.0,0.2010785]
[1761089303981,0.45676993,109420.0,109410.0,0.2010785]
[1761089304532,0.02695092,109420.0,109410.0,0.56045077]
[1761089304739,0.02695092,109420.0,109410.0,0.18279864]
[1761089304933,0.02695092,109420.0,109410.0,0.2010785]
[1761089305672,0.02695092,109420.0,109410.0,0.18279864]
[1761089305967,0.02695092,109420.0,109410.0,0.18379864]
[1761089306382,0.55125852,109440.0,109420.0,0.18278194]
[1761089306587,1.00077108,109440.0,109430.0,0.18276523]
[1761089306980,1.00077108,109440.0,109420.0,0.29923477]
[1761089309712,1.02411931,109440.0,109420.0,0.29923477]
[1761089310561,0.18276523,109430.0,109420.0,0.29923477]
[1761089311078,0.52276523,109430.0,109420.0,0.29923477]
[1761089311301,0.34,109430.0,109420.0,0.29923477]
[1761089312285,0.34,109430.0,109420.0,0.30023477]
[1761089312861,0.34,109430.0,109420.0,0.30123477]
[1761089314773,0.59296011,109430.0,109420.0,0.30123477]
[1761089318928,0.34,109430.0,109420.0,0.30123477]
[1761089319180,0.59296011,109430.0,109420.0,0.30123477]
[1761089321415,0.25296011,109430.0,109420.0,0.30123477]
[1761089321563,0.43572534,109430.0,109420.0,0.30123477]
[1761089323603,0.52554435,109430.0,109420.0,0.00249283]
[1761089323809,0.79822921,109430.0,109420.0,0.00249283]
[1761089324423,0.7084102,109430.0,109420.0,0.00149283]
[1761089324617,0.45545009,109430.0,109420.0,0.00049283]
[1761089325429,1.0484102,109430.0,109420.0,0.00049283]
[1761089326440,1.1641702,109430.0,109420.0,0.00049283]
[1761089326623,3.1641702,109430.0,109420.0,0.00049283]
[1761089326842,3.08546518,109430.0,109420.0,0.00049283]
[1761089329113,2.90176262,109430.0,109420.0,0.00049283]
[1761089329539,3.08452785,109430.0,109420.0,0.00049283]
[1761089330890,2.99470884,109430.0,109420.0,0.00049283]
[1761089332070,2.65731265,109430.0,109420.0,0.00049283]
[1761089332248,0.99470884,109430.0,109420.0,0.00049283]
[1761089338596,0.65731265,109430.0,109420.0,0.18327477]
[1761089338802,0.99470884,109430.0,109420.0,0.00049283]
[1761089340256,1.08381268,109430.0,109420.0,0.00049283]
[1761089341096,1.06502526,109430.0,109420.0,0.00049283]
[1761089341294,1.08476916,109430.0,109420.0,0.00049283]
[1761089344908,1.09910157,109430.0,109420.0,0.00049283]
[1761089350190,0.76170538,109430.0,109420.0,0.00049283]
[1761089350323,1.09910157,109430.0,109420.0,0.00049283]
[1761089351187,1.12378171,109430.0,109420.0,0.00049283]
[1761089355229,3.1566943,109430.0,109420.0,0.00049283]
[1761089355431,3.1094493,109430.0,109420.0,0.00049283]
[1761089359911,3.11768175,109430.0,109420.0,0.00049283]
[1761089360153,3.14238366,109430.0,109420.0,0.00049283]
[1761089361025,3.16987588,109430.0,109420.0,0.00049283]
[1761089361206,3.13696329,109430.0,109420.0,0.00049283]
[1761089361987,3.16987588,109430.0,109420.0,0.00049283]
[1761089364263,3.13696329,109430.0,109420.0,0.00049283]
[1761089367564,3.16987588,109430.0,109420.0,0.00049283]
[1761089369253,3.14517397,109430.0,109420.0,0.00049283]
[1761089369474,3.15950796,109430.0,109420.0,0.00049283]
[1761089369695,3.20863935,109430.0,109420.0,0.00049283]
[1761089369930,3.19430536,109430.0,109420.0,0.00049283]
[1761089370149,3.19430536,109430.0,109420.0,1e-08]
[1761089371265,3.16986329,109430.0,109420.0,1e-08]
[1761089372087,3.14517397,109430.0,109420.0,1e-08]
[1761089372311,3.16986263,109430.0,109420.0,1e-08]
[1761089374267,3.14517397,109430.0,109420.0,1e-08]
[1761089375807,3.39037397,109430.0,109420.0,1e-08]
[1761089376873,3.43950536,109430.0,109420.0,1e-08]
[1761089378485,3.07505882,109430.0,109420.0,1e-08]
[1761089380280,3.39037397,109430.0,109420.0,1e-08]
[1761089380666,3.39137397,109430.0,109420.0,1e-08]
[1761089380813,3.39237397,109430.0,109420.0,1e-08]
[1761089381041,3.39137397,109430.0,109420.0,1e-08]
[1761089381221,3.39237397,109430.0,109420.0,1e-08]
[1761089381612,3.14717397,109430.0,109420.0,1e-08]
[1761089382028,3.14617397,109430.0,109420.0,1e-08]
[1761089382235,3.14717397,109430.0,109420.0,1e-08]
[1761089383137,3.19630536,109430.0,109420.0,1e-08]
[1761089383351,3.21064028,109430.0,109420.0,1e-08]
[1761089384272,3.17772769,109430.0,109420.0,1e-08]
[1761089384488,3.18772768,109430.0,109420.0,1e-08]
[1761089384691,3.19772767,109430.0,109420.0,1e-08]
[1761089385106,3.52078894,109430.0,109420.0,1e-08]
[1761089385310,3.53512295,109430.0,109420.0,1e-08]
[1761089385512,3.46531566,109430.0,109420.0,1e-08]
[1761089385719,3.43820032,109430.0,109420.0,1e-08]
[1761089385926,3.41618427,109430.0,109420.0,1e-08]
[1761089386104,3.19759102,109410.0,109400.0,0.005]
[1761089386309,3.45574738,109410.0,109400.0,0.00549213]
[1761089386655,3.28737938,109410.0,109400.0,0.00549213]
[1761089386866,3.29287151,109410.0,109400.0,0.00549213]
[1761089387076,3.5460837,109410.0,109400.0,0.00549213]
[1761089387557,3.36934362,109410.0,109400.0,0.00549213]
[1761089387764,3.55214226,109410.0,109400.0,0.00549213]
[1761089388162,3.53360559,109410.0,109400.0,0.00549213]
[1761089388374,3.56647904,109410.0,109400.0,0.00549213]
[1761089388907,3.31326685,109410.0,109400.0,0.00549213]
[1761089389108,3.2803934,109410.0,109400.0,0.00549213]
[1761089389534,3.2813934,109410.0,109400.0,0.00549213]
[1761089389899,3.2823934,109410.0,109400.0,0.00549213]
[1761089395600,0.18281535,109400.0,109390.0,1e-08]
[1761089395807,3.46053554,109400.0,109390.0,1e-08]
[1761089396011,3.44999445,109400.0,109390.0,1e-08]
[1761089396213,3.43038102,109400.0,109390.0,1e-08]
[1761089396447,4.19001759,109400.0,109390.0,1e-08]
[1761089396614,4.20001758,109400.0,109390.0,1e-08]
[1761089396827,3.44038101,109400.0,109390.0,1e-08]
[1761089397036,3.44138101,109400.0,109390.0,1e-08]
[1761089397577,3.49069119,109400.0,109390.0,1e-08]
[1761089398344,3.49169119,109400.0,109390.0,1e-08]
[1761089398715,0.00914327,109370.0,109340.0,0.005]
[1761089398913,0.77611113,109350.0,109340.0,0.005]
[1761089399397,0.80361908,109350.0,109340.0,0.005]
[1761089399997,0.80361908,109350.0,109340.0,0.00514727]
[1761089400369,2.89052254,109350.0,109340.0,0.00514727]
[1761089400606,3.14373473,109350.0,109340.0,0.00514727]
[1761089400861,2.92795126,109350.0,109340.0,0.00514727]
[1761089401229,2.58783561,109350.0,109340.0,0.00514727]
[1761089401430,2.65814886,109350.0,109340.0,0.18806294]
[1761089401652,2.8410478,109350.0,109340.0,0.00514727]
[1761089402110,3.09425999,109350.0,109340.0,0.00514727]
[1761089402735,3.21001999,109350.0,109340.0,0.00514727]
[1761089402953,3.299839,109350.0,109340.0,0.00514727]
[1761089403314,3.55305119,109350.0,109340.0,0.00514727]
[1761089403476,3.299839,109350.0,109340.0,0.00514727]
[1761089403833,3.31950343,109350.0,109340.0,0.00514727]
[1761089404586,3.31950343,109350.0,109340.0,0.00688446]
[1761089404826,2.81307905,109350.0,109340.0,0.00688446]
[1761089404973,3.299839,109350.0,109340.0,0.00688446]
[1761089407234,0.52291567,109340.0,109330.0,0.0002]
[1761089407429,3.39013902,109340.0,109330.0,0.00034775]
[1761089407630,3.3884057,109340.0,109330.0,0.00034775]
[1761089409919,3.3894057,109340.0,109330.0,0.00034775]
[1761089411137,3.41692256,109340.0,109330.0,0.00034775]
[1761089411420,3.16371037,109340.0,109330.0,0.00034775]
[1761089411634,3.1440452,109340.0,109330.0,0.00034775]
[1761089412229,3.15838897,109340.0,109330.0,0.00034775]
[1761089412439,3.17806296,109340.0,109330.0,0.00034775]
[1761089412634,3.16371919,109340.0,109330.0,0.00034775]
[1761089412859,3.16371919,109340.0,109330.0,0.0006953]
[1761089413295,4.17656795,109340.0,109330.0,0.0006953]
[1761089413499,3.47742938,109340.0,109330.0,0.0006953]
[1761089413681,3.45541333,109340.0,109330.0,0.0006953]
[1761089414026,3.43401484,109340.0,109330.0,0.0006953]
[1761089414486,3.45541333,109340.0,109330.0,0.0006953]
[1761089415547,3.46975796,109340.0,109330.0,0.0006953]
[1761089415820,4.26141057,109340.0,109330.0,0.0006953]
[1761089416025,4.29599901,109340.0,109330.0,1e-08]
[1761089416703,3.02939025,109310.0,109300.0,0.0004]
[1761089416887,3.23500926,109310.0,109300.0,0.00054814]
[1761089417113,3.23500926,109310.0,109250.0,0.0054]
[1761089417114,0.18304704,109270.0,109250.0,0.0054]
[1761089417250,1.14579398,109260.0,109250.0,0.0054]
[1761089417459,2.72918861,109260.0,109250.0,0.0054]
[1761089417665,2.5230496,109260.0,109250.0,0.0054]
[1761089417854,2.5284496,109260.0,109250.0,0.0054]
[1761089418055,2.5658262,109260.0,109250.0,0.00818255]
[1761089418255,2.59150349,109260.0,109250.0,0.00818255]
[1761089418510,2.69132249,109260.0,109250.0,0.00818255]
[1761089418710,3.28271968,109240.0,109230.0,0.0002]
[1761089419054,2.52308311,109240.0,109230.0,0.0002]
[1761089419277,2.64319431,109240.0,109230.0,0.0002]
[1761089419507,0.5704135,109240.0,109230.0,0.0002]
[1761089419728,0.4533335,109240.0,109230.0,0.0002]
[1761089419949,0.0170382,109240.0,109230.0,0.18329988]
[1761089420342,0.25321219,109240.0,109230.0,0.20160986]
[1761089420716,0.4362953,109240.0,109230.0,0.18329988]
[1761089420935,0.31514836,109240.0,109230.0,0.20160986]
[1761089421131,0.75144366,109240.0,109230.0,0.0002]
[1761089421335,3.20856366,109240.0,109230.0,0.0002]
[1761089421539,3.48745314,109240.0,109230.0,0.0002]
[1761089421904,0.18311664,109220.0,109210.0,0.0002]
[1761089422055,2.93542208,109220.0,109210.0,0.0002]
[1761089422577,2.91899389,109220.0,109210.0,0.0002]
[1761089422804,2.77335985,109220.0,109210.0,0.0002]
[1761089423022,2.65619985,109220.0,109210.0,0.0002]
[1761089423285,2.99619985,109220.0,109210.0,0.00069393]
[1761089423504,3.02024974,109220.0,109210.0,0.00069393]
[1761089423924,2.98771367,109220.0,109210.0,0.00069393]
[1761089424417,2.61370419,109220.0,109210.0,0.00069393]
[1761089424704,3.01324835,109220.0,109210.0,0.00069393]
[1761089424928,3.01324835,109220.0,109210.0,0.00208623]
[1761089424929,2.98748715,109220.0,109210.0,0.00208623]
[1761089425373,2.98849313,109220.0,109210.0,0.00208623]
[1761089425599,2.99724709,109220.0,109210.0,1e-08]
[1761089425817,0.20881069,109210.0,109200.0,0.0002]
[1761089426000,3.18486982,109210.0,109200.0,0.00033568]
[1761089426431,3.23418983,109210.0,109200.0,0.00068385]
[1761089426606,3.21728566,109210.0,109200.0,0.00068385]
[1761089426757,3.23997498,109210.0,109200.0,0.00068385]
[1761089427250,2.85647788,109210.0,109200.0,0.00068385]
[1761089427454,2.83208853,109210.0,109200.0,0.00068385]
[1761089427652,2.2270164,109210.0,109200.0,0.00068385]
[1761089427862,2.01959137,109210.0,109200.0,0.00068385]
[1761089428071,2.20372478,109210.0,109200.0,0.00068385]
[1761089428253,2.56453256,109210.0,109200.0,0.00068385]
[1761089429208,2.56353256,109210.0,109200.0,0.00068385]
[1761089429416,2.65335157,109210.0,109200.0,0.00068385]
[1761089431038,0.24896233,109230.0,109210.0,0.18313341]
[1761089431244,2.0,109220.0,109210.0,0.18313341]
[1761089431449,0.01940812,109220.0,109210.0,0.18313341]
[1761089431650,0.19225487,109230.0,109210.0,0.18313341]
[1761089431786,0.02721252,109230.0,109210.0,0.18313341]
[1761089431988,0.0194063,109230.0,109220.0,0.18311664]
[1761089432201,2.0,109230.0,109220.0,0.18311664]
[1761089432608,2.01940769,109230.0,109220.0,0.18311664]
[1761089432873,0.01940769,109230.0,109210.0,0.18313341]
[1761089433004,0.00143433,109220.0,109210.0,0.20144675]
[1761089434009,0.00143433,109220.0,109210.0,0.18313341]
[1761089434821,0.00143433,109220.0,109210.0,0.65307354]
[1761089435038,0.00143433,109220.0,109210.0,0.6347602]
[1761089436074,0.06166822,109260.0,109250.0,0.18306636]
[1761089436269,0.10640503,109260.0,109250.0,0.18306636]
[1761089436542,0.09796834,109260.0,109250.0,0.18306636]
[1761089436762,0.43796834,109260.0,109250.0,0.18306636]
[1761089437318,0.43811599,109260.0,109250.0,0.18306636]
[1761089437436,0.62116559,109260.0,109250.0,0.18306636]
[1761089437639,0.60429221,109260.0,109250.0,0.18306636]
[1761089437849,0.60429221,109260.0,109230.0,0.30029382]
[1761089437850,2.0,109240.0,109230.0,0.30029382]
[1761089438043,0.01942674,109240.0,109230.0,0.30029382]
[1761089438291,0.18308311,109240.0,109220.0,0.1922344]
[1761089438518,0.20250985,109240.0,109230.0,0.30025988]
[1761089438688,0.54250985,109240.0,109230.0,0.30025988]
[1761089438888,0.18309988,109230.0,109210.0,0.18313341]
[1761089439112,0.9033344,109230.0,109220.0,0.11724]
[1761089439528,0.54252662,109230.0,109220.0,0.11724]
[1761089439942,0.54252662,109230.0,109220.0,0.11824]
[1761089440288,0.54252662,109230.0,109220.0,0.11724]
[1761089440289,0.63234563,109230.0,109220.0,0.11724]
[1761089440446,0.65664434,109230.0,109220.0,0.11724]
[1761089440642,0.56682533,109230.0,109220.0,0.11724]
[1761089440816,0.38372545,109230.0,109220.0,0.3186683]
[1761089441015,0.35942674,109230.0,109220.0,0.30035664]
[1761089441488,0.54252662,109230.0,109220.0,0.30035664]
[1761089441778,0.65675427,109230.0,109220.0,0.30035664]
[1761089442342,0.68917011,109230.0,109220.0,0.30035664]
[1761089443144,0.68917011,109230.0,109220.0,0.1159491]
[1761089443369,0.68917011,109230.0,109220.0,0.29906574]
[1761089443627,0.66481712,109230.0,109220.0,0.29906574]
[1761089443935,1.0256249,109230.0,109220.0,0.29906574]
[1761089444098,0.66481712,109230.0,109220.0,0.29906574]
[1761089444303,0.68177386,109230.0,109220.0,0.29906574]
[1761089444660,0.73045483,109230.0,109220.0,0.29906574]
[1761089445400,0.69803899,109230.0,109220.0,0.29906574]
[1761089446262,0.70652905,109230.0,109220.0,0.1159491]
[1761089446462,0.70652905,109230.0,109220.0,0.29906574]
[1761089446669,0.70652905,109230.0,109220.0,0.1159491]
[1761089447500,0.65784808,109230.0,109220.0,0.1159491]
[1761089448629,0.72315525,109230.0,109220.0,0.1159491]
[1761089449032,0.72321835,109230.0,109220.0,0.1159491]
[1761089449235,0.65791118,109230.0,109220.0,0.1159491]
[1761089449551,0.70373596,109230.0,109220.0,0.29906574]
[1761089449770,0.63352956,109230.0,109220.0,0.29906574]
[1761089449969,0.63352956,109230.0,109210.0,0.18313341]
[1761089450118,0.2321563,109220.0,109200.0,0.1836979]
[1761089450322,0.08171472,109210.0,109200.0,0.1836979]
[1761089450526,0.12683723,109210.0,109200.0,0.3008179]
[1761089450760,0.07780821,109210.0,109200.0,0.3008179]
[1761089451170,0.10880466,109210.0,109200.0,0.3008179]
[1761089451370,0.12683723,109210.0,109200.0,0.30095358]
[1761089451570,0.09415153,109210.0,109200.0,0.30095358]
[1761089451749,0.09419472,109210.0,109200.0,0.30195358]
[1761089452155,0.12693281,109210.0,109200.0,0.30095358]
[1761089452356,0.12693281,109210.0,109200.0,0.30195358]
[1761089452557,0.12693281,109210.0,109200.0,0.30095358]
[1761089452758,0.15793882,109210.0,109200.0,0.30195358]
[1761089452955,0.64833414,109210.0,109200.0,0.18483403]
[1761089453142,0.64833414,109210.0,109200.0,0.30079222]
[1761089453520,0.64833414,109210.0,109200.0,0.30179222]
[1761089453933,0.64833414,109210.0,109200.0,0.11864204]
[1761089454738,3.09169553,109210.0,109200.0,0.11864204]
[1761089454895,2.59930512,109210.0,109200.0,0.11864204]
[1761089455258,3.04266651,109210.0,109200.0,0.00152204]
[1761089455459,3.10797368,109210.0,109200.0,0.00152204]
[1761089455704,3.10797368,109210.0,109200.0,0.001]
[1761089456570,2.52315018,109200.0,109190.0,0.12208]
[1761089456713,2.70728202,109200.0,109190.0,0.12208]
[1761089458505,2.70728202,109200.0,109190.0,0.12408]
[1761089460730,2.69879196,109200.0,109190.0,0.12408]
[1761089460937,2.69879196,109200.0,109190.0,0.007]
[1761089461326,3.25919335,109200.0,109190.0,0.007]
[1761089461736,3.21004622,109200.0,109190.0,0.007]
[1761089462162,3.21004622,109200.0,109190.0,0.00734821]
[1761089462572,3.27535339,109200.0,109190.0,0.00734821]
[1761089462736,3.30103068,109200.0,109190.0,0.00734821]
[1761089462981,3.27535339,109200.0,109190.0,0.00734821]
[1761089463390,3.27535339,109200.0,109190.0,0.00634821]
[1761089463789,3.27635339,109200.0,109190.0,0.00634821]
[1761089464297,3.27535339,109200.0,109190.0,0.00634821]
[1761089464738,3.30103068,109200.0,109190.0,0.00534821]
[1761089465103,0.52320051,109170.0,109160.0,0.005]
[1761089465313,1.07387739,109170.0,109160.0,0.00549418]
[1761089465521,0.630516,109170.0,109160.0,0.00549418]
[1761089465731,0.65505514,109170.0,109160.0,0.00549418]
[1761089465949,1.09841653,109170.0,109160.0,0.00549418]
[1761089466188,3.09841653,109170.0,109160.0,0.00549418]
[1761089466410,3.13224079,109170.0,109160.0,0.00549418]
[1761089466612,3.14414258,109170.0,109160.0,0.00549418]
[1761089466762,3.20322086,109170.0,109160.0,0.00549418]
[1761089466964,3.21758769,109170.0,109160.0,0.00549418]
[1761089467165,3.21858769,109170.0,109160.0,0.00549418]
[1761089467722,0.45252477,109130.0,109100.0,0.0052]
[1761089467924,0.34,109120.0,109110.0,0.18330125]
[1761089468124,0.45830638,109120.0,109110.0,0.18330125]
[1761089468412,0.06107099,109120.0,109110.0,0.27312026]
[1761089468554,0.01959997,109120.0,109110.0,0.27312026]
[1761089468992,0.02494902,109130.0,109120.0,0.18328445]
[1761089468993,0.04451773,109130.0,109120.0,0.18328445]
[1761089469215,0.03704669,109130.0,109120.0,0.30124445]
[1761089469427,0.04966772,109130.0,109120.0,0.30124445]
[1761089469786,0.24477149,109130.0,109120.0,0.11796]
[1761089470217,0.24475299,109130.0,109120.0,0.30124445]
[1761089470418,0.22029585,109130.0,109120.0,0.11796]
[1761089470656,0.34,109120.0,109110.0,0.18330125]
[1761089470815,0.35956835,109120.0,109110.0,0.30122125]
[1761089471017,0.40194156,109120.0,109110.0,0.30122125]
[1761089471201,0.40194117,109120.0,109110.0,0.30122125]
[1761089471396,0.36542165,109120.0,109110.0,0.30122125]
[1761089472028,0.02542165,109120.0,109110.0,0.30122125]
[1761089472245,0.02542165,109120.0,109100.0,0.30639244]
[1761089472246,2.35951534,109120.0,109100.0,0.30639244]
[1761089472489,0.54278744,109120.0,109100.0,0.30639244]
[1761089472618,0.5597181,109120.0,109100.0,0.30639244]
[1761089473241,0.54278744,109120.0,109100.0,0.30639244]
[1761089473453,0.52330125,109110.0,109100.0,0.18851805]
[1761089473974,0.34,109110.0,109100.0,0.18851805]
[1761089474981,0.34,109110.0,109100.0,0.18951805]
[1761089475410,0.08981901,109120.0,109100.0,0.18951805]
[1761089475647,0.00049188,109130.0,109120.0,0.18328445]
[1761089476166,0.34049188,109130.0,109120.0,0.20161289]
[1761089476366,0.39869658,109130.0,109120.0,0.18328445]
[1761089476574,0.6014407,109130.0,109110.0,0.30122125]
[1761089477185,0.6014407,109130.0,109120.0,0.18328445]
[1761089477642,0.6014407,109130.0,109110.0,0.30122125]
[1761089477959,0.18328445,109120.0,109100.0,0.68750296]
[1761089478152,0.26175697,109120.0,109110.0,0.30122125]
[1761089479675,0.26175697,109120.0,109110.0,0.11792]
[1761089479877,0.26175697,109120.0,109110.0,0.30122125]
[1761089480079,0.26175697,109120.0,109110.0,0.11792]
[1761089480530,2.52330125,109110.0,109100.0,0.0052]
[1761089480732,3.05648165,109110.0,109100.0,0.0052]
[1761089481154,2.61312026,109110.0,109100.0,0.0052]
[1761089482337,3.05648165,109110.0,109100.0,0.0052]
[1761089482916,3.0708531,109110.0,109100.0,0.00833669]
[1761089483138,3.05648165,109110.0,109100.0,0.00833669]
[1761089483363,3.05648165,109110.0,109100.0,0.00741838]
[1761089483600,0.52330125,109110.0,109100.0,0.00741838]
[1761089483841,0.96666264,109110.0,109100.0,0.00741838]
[1761089484446,0.96666264,109110.0,109100.0,0.19073643]
[1761089484651,0.52330125,109110.0,109100.0,0.00741838]
[1761089484877,0.61312026,109110.0,109100.0,0.00741838]
[1761089485912,0.34,109110.0,109100.0,0.20906823]
[1761089486101,0.34,109110.0,109100.0,0.30857643]